bitfinex/quotes_SOLUSD_20250817
["timestamp","ask_amount","ask_price","bid_price","bid_amount"]
[1755439547705,15.10621557,193.4,193.38,0.03]
[1755439547921,68.52902594,193.39,193.38,0.03]
[1755439548124,69.18902594,193.39,193.38,0.03]
[1755439549529,74.35992412,193.39,193.38,0.03]
[1755439550335,32.83645415,193.39,193.38,0.03]
[1755439550631,69.35645415,193.39,193.38,0.03]
[1755439550930,70.0115789,193.39,193.38,0.03]
[1755439551511,70.01038577,193.39,193.38,0.03]
[1755439553232,41.10621557,193.37,193.36,0.03]
[1755439553432,88.8854008,193.37,193.36,0.03]
[1755439553614,89.5454008,193.37,193.36,0.03]
[1755439553933,94.7168338,193.37,193.36,0.03]
[1755439554840,94.7168338,193.37,193.36,1e-08]
[1755439555033,96.01105653,193.37,193.36,1e-08]
[1755439556234,15.10621557,193.36,193.35,1e-08]
[1755439556435,27.0254008,193.36,193.35,1e-08]
[1755439557721,32.19710125,193.36,193.35,1e-08]
[1755439558620,32.19710125,193.36,193.34,1e-08]
[1755439558822,64.83973569,193.35,193.34,1e-08]
[1755439559445,63.5454008,193.35,193.34,1e-08]
[1755439559605,68.71736873,193.35,193.34,1e-08]
[1755439559806,64.86226318,193.35,193.34,1e-08]
[1755439560032,68.71025147,193.35,193.34,1e-08]
[1755439560245,33.48467153,193.35,193.34,1e-08]
[1755439560440,53.60483996,193.35,193.34,1e-08]
[1755439560640,20.2781835,193.35,193.34,0.67000001]
[1755439561012,24.20359501,193.35,193.34,0.67000001]
[1755439562838,15.10621557,193.35,193.34,0.67000001]
[1755439563040,35.09679995,193.38,193.34,0.67000001]
[1755439563220,18.56914129,193.37,193.34,0.67000001]
[1755439563425,19.03162708,193.37,193.35,0.67]
[1755439563822,9.09711196,193.36,193.34,1e-08]
[1755439564141,19.03162708,193.35,193.34,1e-08]
[1755439564443,15.10621557,193.35,193.34,1e-08]
[1755439564829,15.10621557,193.35,193.34,0.67000001]
[1755439565839,15.10621557,193.35,193.34,1e-08]
[1755439566418,15.10621557,193.35,193.34,0.67000001]
[1755439567016,26.0,193.39,193.34,4.59541152]
[1755439567017,15.10621557,193.39,193.34,4.59541152]
[1755439567230,7.05359989,193.4,193.38,3.92541151]
[1755439567447,10.51749689,193.4,193.38,3.92541151]
[1755439567616,25.62371246,193.4,193.39,0.67]
[1755439567816,22.15981546,193.4,193.39,0.67]
[1755439569463,7.05359989,193.4,193.39,0.67]
[1755439571228,15.10621557,193.39,193.35,0.67]
[1755439571436,19.03162708,193.39,193.35,0.67]
[1755439572235,0.06,193.37,193.35,0.67]
[1755439573946,0.06,193.37,193.34,9.09760351]
[1755439574156,0.06,193.37,193.36,0.67]
[1755439575136,0.06,193.37,193.36,4.59541151]
[1755439575332,0.06,193.37,193.36,9.76711196]
[1755439575533,0.06,193.37,193.36,91.004282]
[1755439576536,0.06,193.4,193.39,26.0]
[1755439576739,0.06,193.4,193.39,147.14541151]
[1755439576941,0.06,193.4,193.39,153.00630969]
[1755439579254,0.06,193.4,193.39,116.48630969]
[1755439579432,0.06,193.4,193.39,117.22]
[1755439580024,0.06,193.4,193.39,36.52]
[1755439582456,0.06,193.4,193.39,45.61630969]
[1755439582633,0.06,193.4,193.39,46.30630969]
[1755439584852,0.06,193.4,193.39,45.61630969]
[1755439585556,0.06,193.4,193.39,40.44541151]
[1755439585761,0.06,193.4,193.39,80.7]
[1755439585955,0.06,193.4,193.39,90.48630969]
[1755439586838,0.06,193.4,193.39,126.98630969]
[1755439587358,0.06,193.4,193.39,90.48630969]
[1755439587555,0.06,193.4,193.39,126.98630969]
[1755439588458,0.06,193.4,193.39,152.98630969]
[1755439588654,0.06,193.42,193.4,80.64]
[1755439588955,0.06,193.42,193.41,40.94244785]
[1755439589162,0.06,193.42,193.41,41.63244785]
[1755439589744,0.06,193.42,193.41,122.27244785]
[1755439589948,0.06,193.42,193.41,121.75541151]
[1755439590660,0.06,193.42,193.41,122.31036347]
[1755439590861,0.06,193.42,193.41,126.23577498]
[1755439591543,0.06,193.42,193.41,122.31036347]
[1755439591747,0.77,193.42,193.41,36.5]
[1755439593063,0.06,193.42,193.41,40.42541151]
[1755439593844,0.06,193.42,193.41,45.59577498]
[1755439594965,0.06,193.42,193.41,126.23577498]
[1755439595249,0.06,193.42,193.41,126.92577498]
[1755439596441,0.06,193.42,193.41,126.23577498]
[1755439599367,0.06,193.42,193.41,122.31036347]
[1755439599578,0.06,193.42,193.41,126.23577498]
[1755439600289,0.06,193.42,193.41,152.92577498]
[1755439604157,0.06,193.42,193.41,152.23577498]
[1755439605986,0.77,193.42,193.41,111.81036347]
[1755439606161,0.77,193.42,193.41,121.06541151]
[1755439606362,0.77,193.42,193.41,126.23577498]
[1755439606563,0.77,193.42,193.41,121.06541151]
[1755439606757,0.77,193.42,193.41,117.14]
[1755439606966,0.77,193.42,193.41,121.06541151]
[1755439607467,0.77,193.42,193.41,80.64]
[1755439607666,4.24262785,193.42,193.41,80.64]
[1755439607873,4.24262785,193.42,193.4,117.17]
[1755439608079,4.18262785,193.41,193.4,117.17]
[1755439609860,3.47262785,193.41,193.4,121.09541151]
[1755439610186,0.06,193.42,193.4,121.09541151]
[1755439610358,0.77,193.42,193.4,121.09541151]
[1755439611190,0.77,193.42,193.4,117.17]
[1755439611680,0.06,193.42,193.4,126.26604232]
[1755439611992,0.06,193.42,193.41,3.92541151]
[1755439612660,0.06,193.42,193.41,84.56541151]
[1755439612861,0.06,193.42,193.41,89.73577498]
[1755439613360,3.53845688,193.42,193.41,89.73577498]
[1755439613760,3.53845688,193.42,193.41,84.56541151]
[1755439614591,4.24845688,193.42,193.41,84.56541151]
[1755439615300,3.53845688,193.42,193.41,84.56541151]
[1755439617405,3.53845688,193.42,193.41,80.64]
[1755439617991,3.53845688,193.42,193.41,84.56541151]
[1755439619498,4.24845688,193.42,193.41,80.64]
[1755439619676,8.11779209,193.42,193.41,80.64]
[1755439620790,7.40779209,193.42,193.41,84.56541151]
[1755439621679,7.40826687,193.42,193.41,80.64]
[1755439621883,8.11839232,193.42,193.41,80.64]
[1755439622495,12.04389279,193.42,193.41,80.64]
[1755439622664,15.10621557,193.41,193.4,0.03]
[1755439622870,5.17063081,193.4,193.37,0.03]
[1755439623167,3.92541151,193.38,193.37,0.03]
[1755439623390,11.27389279,193.38,193.37,0.03]
[1755439623594,15.10621557,193.37,193.35,0.03]
[1755439623898,32.73188583,193.37,193.35,0.03]
[1755439624272,28.38419603,193.37,193.35,0.03]
[1755439624602,23.16469685,193.37,193.35,0.03]
[1755439624810,11.98389279,193.37,193.35,0.03]
[1755439625281,8.05848128,193.37,193.35,0.03]
[1755439625480,3.47845688,193.37,193.35,3.95541151]
[1755439625674,4.18845688,193.37,193.35,0.03]
[1755439625872,8.05360133,193.37,193.35,0.03]
[1755439626573,32.25666141,193.37,193.35,0.03]
[1755439627378,27.08522841,193.37,193.35,0.03]
[1755439627577,8.05360133,193.37,193.35,0.03]
[1755439627886,4.18845688,193.37,193.35,0.03]
[1755439628601,3.47845688,193.38,193.35,0.03]
[1755439628777,3.47845688,193.37,193.35,0.03]
[1755439628977,3.47845688,193.38,193.35,0.03]
[1755439629201,3.47845688,193.37,193.35,5.20196793]
[1755439629373,0.71,193.38,193.35,5.20196793]
[1755439630309,0.71,193.38,193.35,9.12737944]
[1755439631677,4.18421476,193.38,193.35,0.03]
[1755439631975,0.71,193.37,193.35,0.03]
[1755439633301,3.47421476,193.38,193.35,0.03]
[1755439633600,0.71,193.37,193.35,80.73]
[1755439633994,19.74162708,193.39,193.35,85.90194667]
[1755439634195,0.71,193.38,193.35,85.90194667]
[1755439635611,0.06,193.42,193.37,4.60541151]
[1755439635792,3.53259688,193.42,193.38,3.92541151]
[1755439636114,0.71,193.41,193.38,3.92541151]
[1755439636709,0.71,193.41,193.38,9.09640984]
[1755439637585,0.71,193.4,193.38,9.09640984]
[1755439638100,0.71,193.4,193.38,5.17099833]
[1755439639012,3.53326805,193.41,193.38,3.92541151]
[1755439639505,4.24326805,193.41,193.38,3.92541151]
[1755439640083,0.77,193.41,193.38,3.92541151]
[1755439641887,0.06,193.41,193.38,9.77648295]
[1755439642293,0.06,193.41,193.4,3.92541151]
[1755439642804,0.06,193.41,193.4,121.82541151]
[1755439643608,0.06,193.41,193.4,121.14541151]
[1755439643809,0.06,193.41,193.4,126.31604232]
[1755439644697,0.06,193.41,193.4,126.99604232]
[1755439645885,0.06,193.43,193.4,126.99604232]
[1755439645886,0.06,193.43,193.4,123.07063081]
[1755439646089,3.21316945,193.44,193.42,3.92541151]
[1755439646312,3.21316945,193.44,193.42,85.87007494]
[1755439646500,0.06,193.45,193.43,3.92541151]
[1755439646807,0.06,193.45,193.44,3.92541151]
[1755439647795,0.06,193.45,193.44,9.77497313]
[1755439648586,0.06,193.45,193.44,9.09497313]
[1755439650115,0.06,193.45,193.44,9.77497313]
[1755439650313,0.06,193.45,193.44,9.09497313]
[1755439650509,0.06,193.45,193.44,9.77497313]
[1755439651804,0.06,193.45,193.44,9.09497313]
[1755439654218,0.06,193.45,193.44,89.79497313]
[1755439654405,0.77,193.45,193.44,80.7]
[1755439654608,0.77,193.45,193.44,117.2]
[1755439655008,0.77,193.45,193.44,117.23]
[1755439655512,4.69541151,193.45,193.44,80.73]
[1755439655719,8.55158121,193.45,193.44,80.73]
[1755439655924,8.55158121,193.45,193.44,0.03]
[1755439656622,13.7208756,193.45,193.44,0.03]
[1755439657026,28.82709117,193.45,193.44,0.03]
[1755439657833,24.97092147,193.45,193.44,0.03]
[1755439658014,28.44176355,193.45,193.44,0.03]
[1755439658213,32.29831911,193.45,193.44,0.03]
[1755439660311,28.3729076,193.45,193.44,0.03]
[1755439660630,32.29831911,193.45,193.44,0.03]
[1755439661312,7.38739764,193.45,193.44,0.03]
[1755439661512,3.53084208,193.45,193.44,0.03]
[1755439661917,0.06,193.45,193.44,0.03]
[1755439662316,8.16567937,193.45,193.44,0.03]
[1755439662534,12.02173571,193.45,193.44,0.03]
[1755439663104,8.16567937,193.45,193.44,0.03]
[1755439663524,12.02170079,193.45,193.44,0.03]
[1755439664032,12.02194961,193.45,193.44,0.03]
[1755439664338,17.191244,193.45,193.44,0.03]
[1755439666613,16.932774,193.45,193.44,0.03]
[1755439667043,13.07650376,193.45,193.44,0.03]
[1755439667224,16.93294577,193.45,193.44,0.03]
[1755439667926,32.03916134,193.45,193.44,0.03]
[1755439670020,22.23445544,193.45,193.44,0.03]
[1755439670236,27.40521434,193.45,193.44,0.03]
[1755439670628,31.33062585,193.45,193.44,0.03]
[1755439670849,32.04062585,193.45,193.44,0.03]
[1755439671439,7.12970438,193.45,193.44,0.03]
[1755439671610,3.27179786,193.45,193.44,0.03]
[1755439671809,4.04179786,193.45,193.44,0.03]
[1755439672015,7.96720937,193.45,193.44,0.03]
[1755439672429,11.82729768,193.45,193.44,0.03]
[1755439672844,16.99659207,193.45,193.44,0.03]
[1755439676419,16.99885492,193.45,193.44,0.03]
[1755439677612,13.07344341,193.45,193.44,0.03]
[1755439677843,12.36344341,193.45,193.44,0.03]
[1755439679321,16.28885492,193.45,193.44,0.03]
[1755439679519,17.00207805,193.45,193.44,0.03]
[1755439681249,16.29207805,193.45,193.44,0.03]
[1755439681445,12.36666654,193.45,193.44,0.03]
[1755439681645,17.00207805,193.45,193.44,0.03]
[1755439684538,17.00423543,193.45,193.44,0.03]
[1755439685446,13.07882392,193.45,193.44,0.03]
[1755439688949,32.110451,193.45,193.44,0.03]
[1755439689140,37.74171924,193.45,193.44,0.03]
[1755439689334,15.10621557,193.44,193.42,0.03]
[1755439689536,27.46459002,193.43,193.42,0.03]
[1755439689836,28.17459002,193.43,193.42,0.03]
[1755439690026,69.84441889,193.43,193.42,0.03]
[1755439690361,74.19673445,193.43,193.42,0.03]
[1755439693641,74.19684488,193.43,193.42,0.03]
[1755439693844,74.19710385,193.43,193.42,0.03]
[1755439694044,69.13478829,193.43,193.42,0.03]
[1755439694334,65.20925249,193.43,193.42,0.03]
[1755439695553,69.134664,193.43,193.42,0.03]
[1755439697362,32.634664,193.43,193.42,0.03]
[1755439698247,36.98697956,193.43,193.42,0.03]
[1755439701168,37.70697956,193.43,193.42,0.03]
[1755439701682,37.7069738,193.43,193.42,0.03]
[1755439702869,32.54556937,193.43,193.42,0.03]
[1755439703074,37.71094702,193.43,193.42,0.03]
[1755439703662,37.71083164,193.43,193.42,0.03]
[1755439704758,15.10621557,193.42,193.4,0.03]
[1755439704966,22.24962023,193.41,193.4,0.03]
[1755439705284,26.17503174,193.41,193.4,0.03]
[1755439706692,7.14340466,193.41,193.4,0.74]
[1755439706984,7.14340466,193.41,193.4,4.66541151]
[1755439707188,7.14340466,193.41,193.4,0.74]
[1755439707189,3.27179786,193.41,193.4,0.74]
[1755439707562,3.27179786,193.41,193.4,0.03]
[1755439707892,11.78817898,193.41,193.4,0.03]
[1755439708082,16.95854245,193.41,193.4,0.03]
[1755439708589,7.14276747,193.41,193.4,0.03]
[1755439709490,13.03313094,193.41,193.4,0.03]
[1755439710680,7.14276747,193.41,193.4,0.03]
[1755439711878,3.27179786,193.41,193.4,0.03]
[1755439712078,7.14268162,193.41,193.4,0.03]
[1755439712389,3.27179786,193.41,193.4,0.03]
[1755439712572,7.14262835,193.41,193.4,0.03]
[1755439715891,7.86262835,193.41,193.4,0.03]
[1755439716465,7.14262835,193.41,193.4,0.03]
[1755439716667,7.14262835,193.41,193.4,0.74]
[1755439716878,7.14262835,193.41,193.4,4.66541151]
[1755439717073,3.27179786,193.41,193.4,4.66541151]
[1755439717581,3.27179786,193.41,193.4,9.83604232]
[1755439718288,3.27179786,193.41,193.4,8.42666027]
[1755439719371,0.06,193.44,193.4,89.12666027]
[1755439719682,7.35314443,193.43,193.42,2.51602946]
[1755439720197,7.35314443,193.43,193.41,39.70602946]
[1755439720373,3.48296983,193.42,193.41,41.12165196]
[1755439721272,3.48296983,193.42,193.41,46.29201543]
[1755439722703,3.48296983,193.42,193.41,41.12165196]
[1755439723894,3.48296983,193.42,193.41,37.19]
[1755439724091,3.48296983,193.42,193.41,41.12165196]
[1755439724794,3.48296983,193.42,193.41,40.41165196]
[1755439724994,3.48296983,193.42,193.41,121.11165196]
[1755439725479,4.15296983,193.42,193.4,0.03]
[1755439725789,8.02307225,193.41,193.4,0.03]
[1755439727093,7.35307225,193.41,193.4,0.03]
[1755439728697,8.02307225,193.41,193.4,0.03]
[1755439730285,8.02425102,193.41,193.4,0.03]
[1755439730484,13.19461449,193.41,193.4,0.03]
[1755439730798,13.19469972,193.41,193.4,0.03]
[1755439733274,9.3233333,193.41,193.4,0.03]
[1755439733471,13.19542112,193.41,193.4,0.03]
[1755439734576,8.02505765,193.41,193.4,0.03]
[1755439734772,7.35505765,193.41,193.4,0.74]
[1755439735196,7.35505765,193.41,193.4,4.67165196]
[1755439735376,7.35505765,193.41,193.4,0.03]
[1755439736400,7.35471421,193.41,193.4,0.03]
[1755439739408,3.48296983,193.41,193.4,0.03]
[1755439739582,7.35523844,193.41,193.4,0.03]
[1755439742691,8.02523844,193.41,193.4,0.03]
[1755439743207,7.35523844,193.41,193.4,3.96165196]
[1755439743410,7.35523844,193.41,193.4,4.67165196]
[1755439743707,3.48296983,193.41,193.4,4.67165196]
[1755439744296,3.48296983,193.41,193.4,3.25643492]
[1755439744498,7.35499102,193.41,193.4,0.03]
[1755439747514,7.35498044,193.41,193.4,0.03]
[1755439748188,8.02498044,193.41,193.4,0.03]
[1755439748694,8.02498044,193.41,193.4,80.73]
[1755439750316,15.71177883,193.41,193.4,80.73]
[1755439750512,15.71241197,193.41,193.4,80.73]
[1755439751494,13.19597705,193.41,193.4,80.73]
[1755439754099,15.71241197,193.41,193.4,80.73]
[1755439754828,15.71241197,193.41,193.4,0.03]
[1755439755804,15.71241197,193.41,193.38,0.03]
[1755439755805,15.10621557,193.4,193.38,0.03]
[1755439756007,15.04294668,193.39,193.38,0.03]
[1755439756338,15.76294668,193.39,193.38,0.03]
[1755439756517,15.76304437,193.39,193.38,0.03]
[1755439756913,52.22304437,193.39,193.38,0.03]
[1755439757111,52.22210355,193.39,193.38,0.03]
[1755439757338,67.32831912,193.39,193.38,0.03]
[1755439757548,72.97893668,193.39,193.38,0.03]
[1755439758434,74.39865164,193.39,193.38,0.03]
[1755439758839,70.04190655,193.39,193.38,0.03]
[1755439759239,41.10621557,193.37,193.36,0.03]
[1755439759542,58.04332697,193.37,193.36,0.03]
[1755439759712,58.76332697,193.37,193.36,0.03]
[1755439760229,63.93475997,193.37,193.36,0.03]
[1755439761422,58.2885689,193.37,193.36,0.03]
[1755439762018,100.38845579,193.37,193.36,0.03]
[1755439762418,94.7422389,193.37,193.36,0.03]
[1755439765117,96.8149389,193.37,193.36,0.03]
[1755439765627,92.87878902,193.37,193.36,0.03]
[1755439765831,96.81091133,193.37,193.36,0.03]
[1755439766326,96.81103765,193.37,193.36,0.03]
[1755439768247,98.10522601,193.37,193.36,0.03]
[1755439768430,96.81103765,193.37,193.36,0.03]
[1755439768820,96.80952986,193.37,193.36,0.03]
[1755439769231,96.80952986,193.37,193.36,1e-08]
[1755439769437,102.4558434,193.37,193.36,1e-08]
[1755439769833,19.04236545,193.36,193.35,1e-08]
[1755439770139,32.74188055,193.36,193.35,1e-08]
[1755439770638,34.81501055,193.36,193.35,1e-08]
[1755439771329,35.64445764,193.36,193.35,1e-08]
[1755439771855,35.64267557,193.36,193.35,1e-08]
[1755439772222,34.34844524,193.36,193.35,1e-08]
[1755439772648,70.80844524,193.36,193.35,1e-08]
[1755439773521,34.34844524,193.36,193.35,1e-08]
[1755439773761,70.80844524,193.36,193.35,1e-08]
[1755439773925,34.34844524,193.36,193.35,1e-08]
[1755439774126,70.80844524,193.36,193.35,1e-08]
[1755439774822,66.95016573,193.36,193.35,1e-08]
[1755439775025,70.80659164,193.36,193.35,1e-08]
[1755439778329,69.39040036,193.36,193.35,1e-08]
[1755439779048,32.93040036,193.36,193.35,1e-08]
[1755439779556,66.87044176,193.36,193.35,1e-08]
[1755439779857,68.67040036,193.36,193.35,1e-08]
[1755439780959,69.39040036,193.36,193.35,1e-08]
[1755439782638,41.10621557,193.34,193.33,1e-08]
[1755439782942,20.2789861,193.32,193.31,0.03]
[1755439783147,66.59834044,193.32,193.31,0.03]
[1755439783457,69.39168544,193.32,193.31,0.03]
[1755439784258,69.38990689,193.32,193.31,0.03]
[1755439784459,70.80912447,193.32,193.31,0.03]
[1755439784762,70.80884663,193.32,193.31,0.03]
[1755439785959,70.72268429,193.32,193.31,0.03]
[1755439786141,33.54268429,193.32,193.31,0.7]
[1755439786458,70.00268429,193.32,193.31,0.7]
[1755439786636,70.00268429,193.32,193.31,0.03]
[1755439787863,70.69268429,193.32,193.31,0.03]
[1755439788334,70.00268429,193.32,193.31,0.03]
[1755439788755,33.54268429,193.32,193.31,0.7]
[1755439789149,62.20913859,193.32,193.31,0.7]
[1755439789466,70.69389208,193.32,193.31,0.03]
[1755439793265,70.69695677,193.32,193.31,0.03]
[1755439795368,70.69921018,193.32,193.31,0.03]
[1755439796245,70.70025694,193.32,193.31,0.03]
[1755439796767,70.01025694,193.32,193.31,0.03]
[1755439797152,70.70025694,193.32,193.31,0.03]
[1755439799260,70.70414368,193.32,193.31,0.03]
[1755439799562,75.04639704,193.32,193.31,0.03]
[1755439800540,76.3408507,193.32,193.31,0.03]
[1755439800941,39.1908507,193.32,193.31,0.03]
[1755439801460,70.49056813,193.32,193.31,0.03]
[1755439801644,75.65479787,193.32,193.31,0.03]
[1755439802045,75.6547645,193.32,193.31,0.03]
[1755439802257,71.18056813,193.32,193.31,0.03]
[1755439802456,39.88593112,193.32,193.31,0.03]
[1755439802664,75.65593112,193.32,193.31,0.03]
[1755439802854,39.88593112,193.32,193.31,0.03]
[1755439803056,76.34593112,193.32,193.31,0.03]
[1755439803781,39.88593112,193.32,193.31,0.03]
[1755439804081,76.34593112,193.32,193.31,0.03]
[1755439804275,19.04539175,193.31,193.29,0.03]
[1755439804487,31.32345754,193.31,193.29,0.03]
[1755439805064,33.39680254,193.31,193.29,0.03]
[1755439806384,37.87984066,193.31,193.3,0.7]
[1755439806570,35.35860234,193.31,193.3,0.7]
[1755439806758,66.16788424,193.31,193.3,0.7]
[1755439807288,29.70788424,193.31,193.3,0.7]
[1755439807879,7.35528555,193.31,193.3,0.7]
[1755439808094,43.79528555,193.31,193.3,0.7]
[1755439808984,48.96832367,193.31,193.3,0.7]
[1755439809300,68.01204905,193.31,193.3,0.03]
[1755439809501,72.66955905,193.31,193.3,0.03]
[1755439810392,77.02766528,193.31,193.3,0.03]
[1755439810761,76.33766528,193.31,193.3,0.03]
[1755439812090,72.40015547,193.31,193.3,0.03]
[1755439812395,64.07638103,193.31,193.3,0.03]
[1755439812558,66.14951103,193.31,193.3,0.03]
[1755439812758,33.64702084,193.31,193.3,0.03]
[1755439813003,70.08702084,193.31,193.3,0.03]
[1755439813469,72.3717549,193.31,193.3,0.03]
[1755439813671,70.50737509,193.31,193.3,0.03]
[1755439813887,71.19737509,193.31,193.3,0.03]
[1755439814188,70.50737509,193.31,193.3,0.03]
[1755439814890,74.4448849,193.31,193.3,0.03]
[1755439815193,75.0948849,193.31,193.3,0.03]
[1755439816789,38.0048849,193.31,193.3,0.03]
[1755439816975,31.99424509,193.31,193.3,0.03]
[1755439817163,68.43424509,193.31,193.3,0.03]
[1755439817885,73.0217549,193.31,193.3,0.03]
[1755439819290,69.95989028,193.31,193.3,0.03]
[1755439819461,69.95989028,193.31,193.29,0.03]
[1755439819462,66.08413315,193.31,193.29,0.03]
[1755439819662,13.24275856,193.3,193.29,0.03]
[1755439819867,12.59275856,193.3,193.29,0.03]
[1755439820105,8.65524905,193.3,193.29,0.03]
[1755439820275,13.01777243,193.3,193.29,0.03]
[1755439821196,16.89656715,193.3,193.29,0.03]
[1755439822274,16.89659783,193.3,193.29,0.03]
[1755439825680,9.05110462,193.3,193.29,0.03]
[1755439825884,22.47542206,193.3,193.29,0.74]
[1755439826085,7.36920649,193.3,193.29,4.67750981]
[1755439827308,7.36920649,193.3,193.29,0.74]
[1755439828211,7.36920649,193.3,193.29,0.03]
[1755439828801,7.36920649,193.3,193.29,0.74]
[1755439829001,7.36930843,193.3,193.29,4.67750981]
[1755439829319,7.36874924,193.3,193.29,9.85108319]
[1755439829495,0.06,193.32,193.29,9.85108319]
[1755439829705,3.48970061,193.31,193.3,0.71]
[1755439829895,3.48970061,193.31,193.3,9.82081555]
[1755439830412,0.06,193.32,193.3,9.82081555]
[1755439830721,0.06,193.32,193.31,4.64750981]
[1755439830924,0.06,193.32,193.31,8.58501962]
[1755439831112,0.06,193.32,193.31,9.10232343]
[1755439831312,0.06,193.34,193.33,29.93750981]
[1755439831801,0.06,193.34,193.33,68.30250297]
[1755439831992,0.06,193.34,193.33,72.24001278]
[1755439832413,0.06,193.34,193.33,72.75726307]
[1755439832702,0.06,193.34,193.33,72.24001278]
[1755439833210,0.06,193.34,193.33,35.82001278]
[1755439838051,0.06,193.34,193.33,72.24001278]
[1755439838199,0.06,193.34,193.33,35.82001278]
[1755439838406,0.06,193.34,193.33,72.22001278]
[1755439840406,0.06,193.34,193.33,152.92001278]
[1755439843345,0.06,193.34,193.33,116.52001278]
[1755439843543,0.06,193.34,193.33,152.92001278]
[1755439847143,0.06,193.37,193.33,152.92001278]
[1755439847324,0.06,193.38,193.36,3.93750981]
[1755439847530,0.06,193.38,193.37,40.33750981]
[1755439847750,0.06,193.38,193.37,121.03750981]
[1755439848078,0.06,193.38,193.37,121.74750981]
[1755439848244,0.06,193.38,193.37,121.03750981]
[1755439849242,0.06,193.38,193.37,126.20894281]
[1755439853628,0.06,193.38,193.37,121.03750981]
[1755439854044,0.75,193.38,193.37,84.63750981]
[1755439854254,0.75,193.38,193.37,40.31750981]
[1755439854450,0.75,193.38,193.37,3.93750981]
[1755439855532,5.92116558,193.38,193.37,3.93750981]
[1755439856432,5.92116558,193.38,193.37,2.51731375]
[1755439856633,0.75,193.38,193.37,2.51731375]
[1755439856961,0.75,193.38,193.36,36.38]
[1755439856962,5.92116558,193.38,193.36,2.51731375]
[1755439857162,0.69,193.37,193.36,2.51731375]
[1755439857959,5.861433,193.37,193.36,2.51731375]
[1755439858362,5.861433,193.37,193.36,3.93405463]
[1755439858654,5.861433,193.37,193.33,3.96405463]
[1755439858836,0.69,193.36,193.33,0.03]
[1755439859032,0.69,193.36,193.33,3.96405463]
[1755439860147,5.17196793,193.35,193.33,3.96405463]
[1755439860352,0.69,193.34,193.33,3.96405463]
[1755439860566,0.69,193.34,193.33,0.03]
[1755439860926,19.7302702,193.34,193.33,0.03]
[1755439861241,27.04759655,193.34,193.33,0.03]
[1755439861552,41.10621557,193.32,193.31,0.03]
[1755439861760,15.10621557,193.31,193.3,0.03]
[1755439861962,26.35759655,193.31,193.3,0.03]
[1755439862143,32.22063467,193.31,193.3,0.03]
[1755439862530,32.22063467,193.31,193.29,1e-08]
[1755439862749,27.04759655,193.3,193.29,1e-08]
[1755439863425,23.11354192,193.3,193.29,1e-08]
[1755439863632,19.26077204,193.3,193.29,1e-08]
[1755439864069,20.96952131,193.3,193.29,1e-08]
[1755439865368,15.10621557,193.3,193.29,3.93405464]
[1755439865740,15.10621557,193.3,193.29,1e-08]
[1755439865942,15.10621557,193.3,193.29,3.93405464]
[1755439865943,15.79621557,193.3,193.29,3.93405464]
[1755439866372,15.10621557,193.31,193.29,3.93405464]
[1755439866535,15.79621557,193.31,193.29,3.93405464]
[1755439867976,15.10621557,193.32,193.29,3.93405464]
[1755439868172,15.79621557,193.32,193.29,3.93405464]
[1755439868880,0.69,193.31,193.29,3.93405464]
[1755439869398,15.10621557,193.32,193.29,3.93405464]
[1755439869765,20.2790684,193.32,193.29,3.93405464]
[1755439869968,0.69,193.31,193.29,3.93405464]
[1755439870171,0.69,193.3,193.29,3.93405464]
[1755439870369,20.2790684,193.32,193.29,3.93405464]
[1755439870586,15.10621557,193.32,193.3,3.93405463]
[1755439870775,0.69,193.31,193.29,3.93405464]
[1755439871071,0.69,193.3,193.29,3.93405464]